bitfinex/quotes_ETHUSD_20220218
["timestamp","ask_amount","ask_price","bid_price","bid_amount"]
[1645149153501,0.85954,2909.7,2909.2,0.00336935]
[1645149153902,0.85954,2909.7,2909.2,1.46517339]
[1645149154102,0.3,2909.6,2909.2,1.46832459]
[1645149154304,1.15957,2909.6,2909.2,1.46832459]
[1645149154508,2.01916,2909.6,2909.2,1.46832459]
[1645149154905,2.01916,2909.6,2909.3,1.46517339]
[1645149155105,2.01916,2909.6,2909.4,1.46517339]
[1645149155303,2.01916,2909.6,2908.9,3.0871]
[1645149155504,2.01916,2909.6,2909.2,0.00315117]
[1645149155704,0.85967,2909.5,2909.2,0.00315117]
[1645149155908,2.57903,2909.5,2909.2,0.00315117]
[1645149156113,2.57903,2909.5,2909.2,1.46831669]
[1645149156309,2.57903,2909.5,2909.3,1.46516552]
[1645149156310,1.71934,2909.5,2909.3,1.46516552]
[1645149156513,1.71934,2909.5,2909.4,1.46516552]
[1645149156710,1.71934,2909.5,2909.2,0.00315115]
[1645149157261,0.85967,2909.4,2909.2,0.00315115]
[1645149157458,0.85965,2909.3,2909.0,1.46516552]
[1645149157659,0.85965,2909.3,2909.2,0.0031528]
[1645149158660,0.15644834,2909.4,2909.2,1.46516552]
[1645149158862,0.45644834,2909.4,2909.3,1.46516552]
[1645149159664,0.45644834,2909.4,2909.1,0.00315281]
[1645149160064,0.45644834,2909.4,2909.2,0.0031528]
[1645149160269,0.45644834,2909.4,2909.2,1.46831832]
[1645149160464,0.45644834,2909.4,2909.3,1.46516552]
[1645149160664,0.10644834,2909.4,2909.3,1.46516552]
[1645149160866,0.10644834,2909.4,2909.2,0.0031528]
[1645149161107,0.10644834,2909.4,2909.0,1.46516552]
[1645149161403,0.10644834,2909.4,2909.2,0.00315957]
[1645149161404,0.85966,2909.3,2909.2,0.00315957]
[1645149162206,0.85966,2909.3,2908.9,1.46516552]
[1645149162405,0.85966,2909.3,2909.0,1.46516552]
[1645149162406,0.85976,2909.2,2909.0,1.46516552]
[1645149162607,1.7194,2909.3,2909.1,1.46516552]
[1645149162804,1.7194,2909.3,2909.2,1.46516552]
[1645149163009,2.90173884,2910.0,2909.2,1.46516552]
[1645149163010,0.1713,2909.8,2909.2,1.46516552]
[1645149163209,0.87597252,2910.1,2909.1,0.86253958]
[1645149163210,0.3,2910.1,2909.1,0.86253958]
[1645149163407,1.15939,2910.1,2909.2,3.18393552]
[1645149163615,0.85946,2910.0,2909.3,1.46516552]
[1645149163806,2.57854,2910.0,2909.4,1.46516552]
[1645149164006,2.57854,2910.0,2909.6,0.98558636]
[1645149164007,1.71908,2910.0,2909.6,0.98558636]
[1645149164307,1.71908,2910.0,2909.7,1.46516552]
[1645149164505,1.71908,2909.9,2909.2,0.00315964]
[1645149164751,0.85954,2909.9,2909.2,1.46820473]
[1645149165359,0.85954,2909.9,2909.3,1.46504509]
[1645149165557,0.85954,2909.9,2909.4,1.46504509]
[1645149165760,0.85955,2909.7,2909.4,1.46504509]
[1645149165957,0.85958,2909.6,2909.4,1.46504509]
[1645149166363,1.3064,2910.3,2909.4,1.46504509]
[1645149166561,1.1351,2910.3,2909.5,1.46504509]
[1645149166759,2.57862,2910.4,2909.6,1.46504509]
[1645149166960,2.57862,2910.4,2909.7,1.46504509]
[1645149167161,3.43798,2910.4,2909.8,1.46504509]
[1645149167360,2.57862,2910.4,2909.9,1.46504509]
[1645149167560,1.71895,2910.2,2909.4,1.46504509]
[1645149167866,0.1713,2910.9,2909.5,6.46491026]
[1645149168067,0.85927,2910.5,2909.6,1.63671026]
[1645149168265,0.85927,2910.5,2909.7,1.46491026]
[1645149168502,0.85927,2910.5,2909.9,0.85934]
[1645149168707,0.85927,2910.5,2910.0,1.46491026]
[1645149169605,0.85927,2910.5,2910.1,1.46491026]
[1645149169807,1.15927,2910.5,2910.2,1.46491026]
[1645149170005,0.85927,2910.5,2910.2,1.096436]
[1645149170208,0.137481,2911.0,2910.3,1.46471373]
[1645149170209,0.85917,2910.9,2910.3,1.46471373]
[1645149170406,0.137481,2911.0,2910.3,1.46471373]
[1645149170407,0.137481,2911.0,2910.3,23.41151373]
[1645149170605,0.137481,2911.0,2910.4,21.74471373]
[1645149170806,0.137481,2911.0,2910.5,2.63631373]
[1645149171005,0.137481,2911.0,2910.6,1.46471373]
[1645149171411,0.137481,2911.0,2910.7,0.85904]
[1645149172260,0.137481,2911.0,2910.8,1.46440255]
[1645149172461,0.137481,2911.0,2910.9,0.85906]
[1645149173874,0.85906,2911.3,2911.0,6.0]
[1645149174068,1.719342,2911.6,2911.1,0.85896]
[1645149174069,0.001152,2911.6,2911.1,0.85896]
[1645149174868,0.001152,2911.6,2911.4,0.99047478]
[1645149175270,0.0031777,2911.6,2911.1,0.85896]
[1645149176103,0.85895,2911.7,2911.1,0.85896]
[1645149176508,0.0031777,2911.6,2911.1,0.85896]
[1645149176704,0.0031777,2911.6,2911.3,1.08071297]
[1645149177012,0.0031777,2911.6,2911.3,22.21964297]
[1645149177205,3.18000571,2912.5,2911.5,20.28]
[1645149177409,7.3,2912.6,2911.5,20.28]
[1645149177605,0.00115507,2911.6,2911.4,1.6666]
[1645149178007,0.00115507,2911.6,2911.4,1.495]
[1645149178204,0.00115507,2911.6,2911.3,3.0472]
[1645149178405,0.495,2913.0,2911.3,3.0472]
[1645149178406,0.1713,2912.0,2911.3,3.0472]
[1645149178606,0.85909,2911.6,2911.3,3.0472]
[1645149178804,0.86024509,2911.6,2911.1,1.9322]
[1645149179009,0.86024509,2911.6,2910.4,2.2076]
[1645149179206,1.15877546,2911.4,2910.6,1.1142014]
[1645149179606,0.85925,2911.5,2910.6,1.1142014]
[1645149180054,0.85924,2911.2,2910.6,1.1142014]
[1645149180254,1.15924,2911.2,2910.6,1.1142014]
[1645149180857,1.15925,2911.2,2910.6,1.1142014]
[1645149181259,2.01846,2911.2,2910.3,3.2723]
[1645149181458,1.15925,2911.2,2910.3,3.2723]
[1645149181859,1.15925,2911.2,2910.1,4.7447]
[1645149182061,0.1711,2911.1,2910.1,4.7447]
[1645149182260,0.1711,2911.1,2909.7,1.05450044]
[1645149182261,1.01259895,2910.5,2909.7,1.05450044]
[1645149182462,1.01259895,2910.5,2909.6,0.2736]
[1645149182659,0.1711,2910.4,2909.6,0.2736]
[1645149183060,0.8596,2910.3,2909.6,0.2736]
[1645149183258,2.31914,2910.3,2909.6,0.2736]
[1645149183913,1.71914,2910.3,2909.6,0.2736]
[1645149184111,1.3671,2911.1,2910.3,1.56266218]
[1645149184330,0.85917,2911.1,2910.3,1.56266218]
[1645149184509,0.87980062,2911.7,2910.4,0.6666]
[1645149184709,0.1713,2912.0,2911.4,0.95074767]
[1645149184908,0.00115401,2911.6,2910.7,1.71799]
[1645149185109,0.00115401,2911.6,2910.4,1.6666]
[1645149185110,0.00115401,2911.6,2910.6,3.1884]
[1645149185308,1.71915401,2911.6,2910.6,3.1884]
[1645149185708,1.71833,2911.5,2910.6,3.1884]
[1645149185909,1.71833,2911.5,2910.8,0.86530251]
[1645149186316,0.00115462,2911.6,2910.8,0.86530251]
[1645149186513,0.86012462,2911.6,2910.8,0.86530251]
[1645149186817,0.85897,2911.6,2910.8,0.86530251]
[1645149187269,0.86012466,2911.6,2910.8,1.72435251]
[1645149187664,1.71914466,2911.6,2910.8,1.72435251]
[1645149188063,0.85897,2911.6,2910.8,1.72435251]
[1645149188264,0.86215522,2911.6,2910.8,1.72435251]
[1645149188664,0.85906,2911.5,2910.8,1.72435251]
[1645149188864,0.85909,2911.3,2910.8,0.86530251]
[1645149189666,0.85918,2911.2,2910.8,0.86530251]
[1645149190067,2.01843,2911.2,2910.8,0.86530251]
[1645149190667,0.85921,2911.1,2910.3,1.56266218]
[1645149190873,2.01843,2911.2,2910.3,1.56266218]
[1645149190874,3.73733,2911.0,2910.3,1.56266218]
[1645149191110,0.85925,2910.9,2910.3,1.56266218]
[1645149191710,0.85942,2910.8,2910.3,1.56266218]
[1645149192116,2.01877,2910.8,2910.3,1.56266218]
[1645149192711,1.15935,2910.8,2910.3,1.56266218]
[1645149192913,0.85929,2910.7,2910.3,1.56266218]
[1645149193515,1.71862,2910.7,2910.3,1.56266218]
[1645149194765,0.85933,2910.7,2910.3,2.72681503]
[1645149195767,1.71863,2910.7,2910.3,1.56266218]
[1645149195965,0.85917,2910.9,2910.3,1.56266218]
[1645149196168,0.85917,2910.9,2910.3,1.56114081]
[1645149196367,0.1713,2911.5,2910.3,1.56114081]
[1645149196768,0.1713,2911.5,2910.3,2.56584081]
[1645149196966,0.1713,2911.5,2910.9,0.83973472]
[1645149197167,1.71827,2911.2,2910.9,0.83973472]
[1645149197370,0.3,2911.1,2910.9,0.83973472]
[1645149197770,1.71827,2911.2,2910.9,0.83973472]
[1645149197771,2.57738,2911.2,2910.9,0.83973472]
[1645149199203,0.85913,2911.1,2910.9,0.83973472]
[1645149200413,7.30337704,2911.6,2910.9,21.11973472]
[1645149200615,7.30337704,2911.6,2910.9,21.61473472]
[1645149200815,7.30337704,2911.6,2911.1,0.85889]
[1645149201013,0.00337704,2911.6,2911.1,0.85889]
[1645149201411,0.85893,2911.7,2911.6,1.01864745]
[1645149201614,7.3,2912.2,2910.9,0.495]
[1645149201615,0.00134433,2911.6,2910.9,0.495]
[1645149201812,0.00134433,2911.6,2910.6,0.495]
[1645149202011,0.00134433,2911.6,2910.7,0.4716]
[1645149202259,0.86038433,2911.6,2910.9,0.85904]
[1645149202453,0.85904,2911.5,2910.9,0.85904]
[1645149202658,0.85904,2911.5,2910.7,1.71798]
[1645149203054,0.85904,2911.5,2910.9,1.16734224]
[1645149203257,1.15904,2911.5,2910.9,1.16734224]
[1645149203456,0.85911,2911.3,2910.9,1.16734224]
[1645149205260,0.85911,2911.3,2910.9,2.02638224]
[1645149205456,0.85911,2911.3,2910.9,1.16734224]
[1645149206508,0.85911,2911.3,2910.5,1.71819]
[1645149206509,0.85908,2911.2,2910.5,1.71819]
[1645149206717,0.85908,2911.2,2910.4,3.0768]
[1645149206718,0.85921,2911.1,2910.4,3.0768]
[1645149206910,0.85921,2911.1,2910.3,1.56114081]
[1645149206911,2.87774,2911.1,2910.3,1.56114081]
[1645149207111,3.5,2911.0,2910.3,1.56114081]
[1645149207309,0.1713,2911.0,2910.3,1.56114081]
[1645149207510,0.1713,2911.0,2910.5,1.11900691]
[1645149207711,0.8592,2910.8,2910.5,1.11900691]
[1645149208310,0.8592,2910.8,2910.3,1.56114081]
[1645149208712,0.3,2910.7,2910.3,2.42036081]
[1645149208912,0.8592,2910.8,2910.3,2.42036081]
[1645149209312,0.3,2910.7,2910.6,1.13681879]
[1645149209752,0.1713,2911.1,2910.6,1.13681879]
[1645149210052,4.87097252,2911.7,2910.6,1.13681879]
[1645149210053,0.1746821,2911.6,2910.6,1.13681879]
[1645149210256,0.85918,2910.9,2910.6,1.13681879]
[1645149210458,1.15918,2910.9,2910.6,1.13681879]
[1645149210857,0.85918,2910.9,2910.6,1.13681879]
[1645149211659,0.85918,2910.9,2910.7,0.85918]
[1645149211858,1.15918,2910.9,2910.7,0.85918]
[1645149213359,1.10918,2910.9,2910.7,0.85918]
[1645149213815,0.80918,2910.9,2910.7,1.85415395]
[1645149214012,1.71832,2911.2,2910.7,1.85415395]
[1645149214013,0.85915,2911.0,2910.7,1.85415395]
[1645149215722,0.85907,2911.2,2910.8,1.46469461]
[1645149215917,0.85907,2911.2,2910.9,0.85905]
[1645149216319,1.71818,2911.2,2910.9,0.85905]
[1645149216518,0.85907,2911.2,2910.9,0.85905]
[1645149216717,0.85907,2911.2,2910.9,1.15905]
[1645149216918,0.85907,2911.2,2910.9,2.15905]
[1645149217121,0.85907,2911.2,2911.0,1.46457844]
[1645149217359,0.85907,2911.2,2911.0,1.0]
[1645149217659,0.85907,2911.2,2911.0,1.85906]
[1645149217859,0.85907,2911.2,2911.0,0.85906]
[1645149219662,0.85907,2911.2,2910.8,1.7181]
[1645149219864,0.85907,2911.2,2910.9,1.46465127]
[1645149220461,0.85907,2911.2,2910.7,1.99497395]
[1645149220462,0.85915,2911.1,2910.7,1.99497395]
[1645149220662,0.85915,2911.1,2910.8,1.46465875]
[1645149220867,0.85914,2911.0,2910.8,1.46465875]
[1645149221121,0.85915,2911.1,2911.0,0.703165]
[1645149221419,2.57749,2911.2,2911.0,0.703165]
[1645149221616,0.85907,2911.2,2911.0,0.703165]
[1645149222718,0.85907,2911.2,2911.0,1.562275]
[1645149222917,1.71818,2911.2,2911.0,1.562275]
[1645149223320,0.00318947,2911.6,2911.1,4.964588]
[1645149223525,0.00318947,2911.6,2911.2,1.464588]
[1645149223719,0.00318947,2911.6,2911.2,3.323608]
[1645149223919,0.00318947,2911.6,2911.3,2.44141444]
[1645149224119,0.00463266,2912.2,2911.3,4.47682644]
[1645149224319,0.00318965,2911.6,2911.4,2.46438244]
[1645149224520,0.00318965,2911.6,2911.4,1.0]
[1645149224753,0.00318965,2911.6,2911.5,3.5]
[1645149224961,0.00318965,2911.6,2911.5,1.46434838]
[1645149225155,0.00318965,2911.6,2911.5,2.76434838]
[1645149225360,0.85887,2911.7,2911.5,1.3]
[1645149225556,0.86205965,2911.7,2911.3,0.97682644]
[1645149225955,0.86205965,2911.7,2911.5,0.85888]
[1645149226168,0.85895,2911.6,2911.3,0.97682644]
[1645149226361,0.85897,2911.6,2911.3,0.97682644]
[1645149226759,0.85897,2911.6,2911.3,2.27682644]
[1645149226760,0.86215967,2911.6,2911.3,2.27682644]
[1645149226959,0.86215967,2911.6,2911.3,2.13583644]
[1645149227659,0.85897,2911.5,2911.3,2.13583644]
[1645149227859,0.85897,2911.5,2911.3,1.83583644]
[1645149229014,0.00463266,2912.0,2911.3,2.13583644]
[1645149229015,0.85883,2911.8,2911.3,2.13583644]
[1645149229214,0.00318964,2911.6,2911.5,0.85878]
[1645149229412,0.00318964,2911.6,2911.5,2.32316828]
[1645149229613,0.00318964,2911.6,2911.5,3.62316828]
[1645149229815,0.00318964,2911.6,2911.5,2.15878]
[1645149230016,0.83379482,2912.4,2911.5,2.15878]
[1645149230214,0.3,2912.4,2912.2,1.12269771]
[1645149230615,2.87662,2912.5,2912.2,1.12269771]
[1645149231614,3.73547,2912.5,2911.7,1.71761]
[1645149231821,1.71775,2912.2,2911.7,0.3]
[1645149232018,1.30724627,2912.8,2911.5,3.5]
[1645149232019,2.32418229,2912.9,2911.5,24.4466]
[1645149232265,2.32418229,2912.9,2911.7,20.28]
[1645149232467,3.18268229,2912.9,2911.9,20.28]
[1645149232666,2.32418229,2912.9,2912.0,1.46422269]
[1645149232864,2.32418229,2912.9,2912.8,1.17228362]
[1645149233067,2.89031923,2913.4,2912.8,1.17228362]
[1645149233265,2.89031923,2913.4,2912.1,0.1716]
[1645149233266,1.47854627,2913.3,2912.1,1.0]
[1645149233468,0.85851,2913.0,2912.1,1.0]
[1645149233866,0.85851,2913.0,2912.2,0.85876]
[1645149234069,1.15848,2912.9,2912.2,0.85876]
[1645149234268,1.15848,2912.9,2911.9,1.71748]
[1645149234269,1.3763341,2912.7,2911.9,1.71748]
[1645149234468,0.3,2912.7,2911.9,1.71748]
[1645149234669,0.85877,2912.6,2911.9,1.71748]
[1645149234869,1.15877,2912.6,2911.9,2.71748]
[1645149235169,0.00338396,2912.4,2912.1,0.85877]
[1645149235369,0.00338396,2912.4,2912.2,0.96506759]
[1645149235768,0.85869,2912.3,2912.2,0.96506759]
[1645149236213,0.85869,2912.3,2912.2,1.82380759]
[1645149236813,0.85869,2912.3,2912.2,2.82380759]
[1645149238013,0.85869,2912.3,2912.2,1.85874]
[1645149238214,0.85869,2912.3,2912.2,0.85874]
[1645149242864,0.862044,2912.4,2912.2,1.85874]
[1645149243264,0.85866,2912.4,2912.2,1.85874]
[1645149243711,0.86204396,2912.4,2912.2,1.85874]
[1645149244327,1.16204396,2912.4,2912.2,0.85874]
[1645149244516,1.15884,2912.2,2911.7,4.9825]
[1645149244718,0.3,2912.0,2911.5,2.8489]
[1645149244913,0.3,2912.0,2911.2,6.6217]
[1645149245114,0.3,2912.1,2911.6,1.46435274]
[1645149245313,1.7178,2912.2,2912.0,0.86466888]
[1645149245515,1.7178,2912.2,2911.9,0.85879]
[1645149245816,1.7178,2912.2,2911.5,0.3]
[1645149246013,1.71781,2912.0,2911.2,5.2626]
[1645149246215,1.71781,2912.0,2911.3,1.46444875]
[1645149246419,0.0046095,2911.9,2911.4,1.71771]
[1645149246618,1.71781,2912.0,2911.9,0.00566157]
[1645149246619,3.43557,2912.0,2911.9,0.00566157]
[1645149247015,3.73557,2912.0,2911.9,0.00566157]
[1645149250669,4.59390915,2912.0,2911.9,0.00566157]
[1645149250863,4.59390915,2912.0,2911.2,2.96782609]
[1645149251127,0.8591,2911.8,2911.2,1.8222]
[1645149251329,1.1591,2911.7,2911.0,3.960465]
[1645149251527,1.1591,2911.7,2911.1,1.4645903]
[1645149251730,2.01821,2911.7,2911.1,1.4645903]
[1645149252126,2.0213694,2911.7,2911.1,1.4645903]
[1645149252927,2.0213694,2911.7,2911.0,0.703165]
[1645149252928,0.85907,2911.5,2911.0,0.703165]
[1645149253126,1.71816,2911.5,2911.0,0.703165]
[1645149253330,2.01816,2911.5,2911.0,0.703165]
[1645149253927,1.14259553,2911.4,2911.0,0.703165]
[1645149254128,0.85905,2911.3,2911.0,0.703165]
[1645149254328,0.85904,2911.2,2911.0,0.703165]
[1645149254759,1.15904,2911.2,2911.0,1.562245]
[1645149255361,1.15904,2911.2,2911.1,1.46471789]
[1645149255661,1.15904,2911.2,2911.0,1.562245]
[1645149256267,2.01808,2911.2,2911.0,1.562245]
[1645149256868,2.01808,2911.2,2911.0,0.703165]
[1645149258712,2.01808,2911.2,2911.0,1.562215]
[1645149259215,2.01808,2911.2,2911.1,1.46466683]
[1645149259717,2.01808,2911.2,2911.0,0.703165]
[1645149260414,2.01808,2911.2,2911.1,1.46474952]
[1645149263365,2.01808,2911.2,2911.0,0.703165]
[1645149264567,2.01808,2911.2,2911.0,1.562205]
[1645149265770,2.01808,2911.2,2911.1,1.46472266]
[1645149266619,1.71807,2911.4,2911.1,4.96472266]
[1645149266823,15.19105,2912.6,2911.3,20.28]
[1645149266824,0.00316549,2911.7,2911.3,20.28]
[1645149267027,0.00316549,2911.7,2911.4,2.32348266]
[1645149267219,0.00316549,2911.7,2911.5,1.76472266]
[1645149267420,0.86204549,2911.7,2911.6,1.46472266]
[1645149267629,1.71775,2911.8,2911.6,1.46472266]
[1645149267819,0.00775212,2911.7,2911.6,2.46472266]
[1645149268021,0.00775212,2911.7,2911.6,2.32350266]
[1645149268022,0.00316567,2911.7,2911.6,2.32350266]
[1645149268619,1.72233645,2911.8,2911.6,3.32350266]
[1645149268819,1.72233645,2911.8,2911.7,1.46472266]
[1645149269864,2.02233645,2911.8,2911.7,1.46472266]
[1645149270466,1.92233645,2911.8,2911.7,1.46472266]
[1645149270866,0.3,2911.7,2911.6,0.85878]
[1645149271067,0.3,2911.7,2911.6,1.46445231]
[1645149273068,2.01784,2911.7,2911.2,1.0]
[1645149273272,0.3,2911.5,2911.3,1.46452863]
[1645149273713,0.3,2911.5,2911.4,1.46452863]
[1645149274110,0.3,2911.5,2911.3,1.46452863]
[1645149274311,0.3,2911.5,2911.4,1.46452863]
[1645149275312,0.85913,2911.3,2911.0,0.703165]
[1645149275517,0.85913,2911.3,2911.1,1.46468337]
[1645149277568,0.96823721,2911.2,2911.1,1.46468337]
[1645149277768,1.26823721,2911.2,2911.1,1.46468337]
[1645149278370,1.25155197,2911.2,2911.1,1.46468337]
[1645149279376,0.28331476,2911.2,2911.1,1.46468337]
[1645149279779,0.85913,2911.3,2911.1,1.46468337]
[1645149280182,1.15913,2911.3,2911.1,1.46468337]
[1645149280785,1.15913,2911.3,2911.1,3.36762361]
[1645149281013,1.15913,2911.3,2911.2,1.46468337]
[1645149286578,0.3,2911.3,2911.2,1.46468337]
[1645149286780,0.3,2911.3,2911.2,3.18245337]
[1645149286978,2.174087,2911.5,2911.2,3.18245337]
[1645149287181,2.174087,2911.5,2911.3,1.46468337]
[1645149287379,0.0031669,2911.7,2911.3,1.46468337]
[1645149287380,0.0031669,2911.7,2911.3,2.32356337]
[1645149287680,1.7208469,2911.7,2911.4,1.46468337]
[1645149287879,1.71768,2911.7,2911.5,1.46468337]
[1645149288081,1.72084701,2911.7,2911.5,1.46468337]
[1645149288281,2.02084701,2911.7,2911.5,1.46468337]
[1645149288912,0.85887,2911.6,2911.5,2.32349337]
[1645149289918,2.0208491,2911.7,2911.5,2.32349337]
[1645149290119,2.01768,2911.7,2911.5,2.32349337]
[1645149290517,2.02084727,2911.7,2911.6,1.46468337]
[1645149290720,0.00316727,2911.7,2911.6,1.46468337]
[1645149290920,0.00316727,2911.7,2911.6,3.18209337]
[1645149291321,0.00316727,2911.7,2911.6,4.18209337]
[1645149291527,0.3,2911.9,2911.2,1.0]
[1645149291725,0.3,2911.9,2911.0,1.198165]
[1645149291726,0.87452491,2911.8,2911.0,0.703165]
[1645149292022,0.3,2911.7,2911.0,0.703165]
[1645149292268,0.3,2911.7,2911.0,0.601565]
[1645149292269,5.0,2911.4,2911.0,0.601565]
[1645149292466,0.6663,2911.3,2911.0,0.601565]
[1645149292664,0.6663,2911.3,2909.8,0.65327764]
[1645149292665,4.5,2911.2,2909.8,0.65327764]
[1645149292864,0.6663,2911.1,2909.9,0.65327764]
[1645149293064,0.9663,2911.1,2909.8,1.51256764]
[1645149293273,0.9663,2911.1,2909.8,0.85929]
[1645149293469,1.71864,2910.8,2909.8,0.85929]
[1645149293870,0.95451778,2910.6,2909.9,0.8629576]
[1645149294071,0.95451778,2910.6,2910.2,0.00316847]
[1645149294269,0.3,2910.5,2910.2,0.00316847]
[1645149294874,0.85932,2910.4,2910.2,0.00316847]
[1645149295072,0.85932,2910.4,2909.9,1.51623524]
[1645149295273,0.3,2910.3,2910.2,0.00316844]
[1645149295675,0.3,2910.3,2909.7,7.26584411]
[1645149295874,0.3,2910.3,2909.5,1.876]
[1645149295875,1.1596,2910.3,2909.5,1.876]
[1645149296334,0.83887433,2910.0,2909.5,1.876]
[1645149296532,0.83887433,2910.0,2909.2,1.65940758]
[1645149296533,0.85962,2909.9,2909.2,1.65940758]
[1645149296729,0.85962,2909.9,2909.2,0.00420758]
[1645149297330,1.71924,2909.9,2909.2,0.00420758]
[1645149297729,0.8596,2909.8,2909.4,0.0018263]
[1645149298129,0.85962,2909.9,2909.4,0.0018263]
[1645149298430,0.3,2910.0,2909.4,0.0018263]
[1645149298632,1.3147,2910.8,2909.3,0.65327764]
[1645149298633,1.71861,2910.4,2909.3,0.65327764]
[1645149298829,1.1434,2910.8,2909.5,20.93327764]
[1645149299035,1.1434,2910.8,2909.7,20.28]
[1645149299232,0.8592,2910.2,2910.1,1.12065704]
[1645149299536,0.1713,2910.9,2910.2,20.28]
[1645149299765,3.5,2911.6,2910.2,20.775]
[1645149299766,1.71817,2911.2,2910.2,20.775]
[1645149299970,6.2487,2911.6,2910.2,20.775]
[1645149300169,0.85914,2911.4,2910.2,22.49311]
[1645149300470,0.00316726,2910.7,2910.3,24.98897511]
[1645149300669,0.00316726,2910.7,2910.5,20.28]
[1645149300868,0.00316726,2910.7,2910.6,21.4516]
[1645149301272,4.29489,2911.6,2910.6,21.4516]
[1645149301473,0.00318839,2910.7,2910.6,21.4516]
[1645149301679,0.00318839,2910.7,2910.6,22.31055]
[1645149302270,0.85896,2910.9,2910.6,22.31055]
[1645149302471,0.85896,2910.9,2910.6,22.13895]
[1645149302670,0.00318836,2910.8,2910.6,22.13895]
[1645149303072,0.00318836,2910.8,2910.6,1.85895]
[1645149303275,0.00318836,2910.8,2910.6,1.0]
[1645149303525,0.85896,2910.9,2910.6,1.0]
[1645149303723,0.85896,2910.9,2910.5,23.68443643]
[1645149303924,0.85896,2910.9,2910.5,22.075]
[1645149304331,0.85896,2910.9,2910.6,0.85903]
[1645149305025,0.86210237,2910.9,2910.6,0.85903]
[1645149305225,0.86210237,2910.9,2910.5,1.795]
[1645149305436,0.86210237,2910.9,2910.5,0.795]
[1645149305627,1.16210237,2910.9,2910.5,1.3]
[1645149305825,0.86210237,2910.9,2910.5,1.3]
[1645149306026,1.15896,2910.9,2910.5,1.3]
[1645149306230,0.8623024,2910.8,2910.5,1.3]
[1645149306428,2.5806424,2910.8,2910.5,1.3]
[1645149306627,1.01819063,2910.8,2910.5,0.3]
[1645149306832,1.01819063,2910.8,2910.3,22.64878408]
[1645149306833,0.15903063,2910.8,2910.3,22.64878408]
[1645149307267,0.15588823,2910.8,2910.3,22.64878408]
[1645149307473,0.15903066,2910.8,2910.3,23.50793408]
[1645149307674,0.85917,2910.7,2910.3,23.50793408]
[1645149307874,1.71832,2910.7,2910.3,23.50793408]
[1645149308675,0.00314264,2910.6,2910.3,22.64878408]
[1645149308875,0.00314264,2910.6,2910.3,22.34878408]
[1645149309574,1.15915,2910.7,2910.3,23.20794408]
[1645149309774,0.00314267,2910.6,2910.3,23.20794408]
[1645149310375,0.00314267,2910.6,2910.3,23.50794408]
[1645149310775,0.85915,2910.7,2910.3,23.50794408]
[1645149311023,0.00135167,2910.6,2910.3,23.50794408]
[1645149311625,0.00135167,2910.6,2910.4,1.40636161]
[1645149311826,0.85915,2910.7,2910.5,20.28]
[1645149312133,0.85915,2910.7,2910.3,3.22794408]
[1645149312134,0.859,2910.9,2910.6,21.68636161]
[1645149312329,0.1713,2911.8,2910.7,2.40636161]
[1645149312526,0.07323745,2911.6,2910.8,1.40636161]
[1645149313126,1.07792559,2911.3,2910.8,1.40636161]
[1645149313326,0.93245056,2911.2,2910.3,2.06878408]
[1645149313531,0.07324056,2911.1,2910.4,1.40655195]
[1645149313728,1.38107023,2911.3,2910.4,1.40655195]
[1645149313729,2.57763,2911.2,2910.4,1.40655195]
[1645149313928,2.57763,2911.2,2910.4,2.40655195]
[1645149313929,0.07324246,2911.1,2910.4,2.40655195]
[1645149314129,2.87763,2911.1,2910.5,1.40655195]
[1645149314329,2.87763,2911.1,2910.5,2.40655195]
[1645149314531,0.85921,2911.0,2910.6,1.40655195]
[1645149314774,0.00314492,2910.9,2910.6,1.40655195]
[1645149314971,0.00314492,2910.9,2910.7,1.90655195]
[1645149315168,0.00314492,2910.9,2910.8,21.68655195]
[1645149315571,0.8591,2910.9,2910.8,22.68655195]
[1645149315770,1.71803,2911.5,2910.8,2.40655195]
[1645149315771,0.00319409,2911.0,2910.8,2.40655195]
[1645149315970,0.00319409,2911.0,2910.6,1.71798]
[1645149316174,0.00319409,2911.0,2910.7,1.40710773]
[1645149316373,0.00319409,2911.0,2910.5,20.28]
[1645149316374,0.00319409,2911.0,2910.8,1.40710773]
[1645149316574,0.00319409,2911.0,2910.6,21.28]
[1645149316773,1.71805,2911.0,2910.7,2.40722558]
[1645149316978,1.72124406,2911.0,2910.8,1.40722558]
[1645149317377,0.93236421,2910.9,2910.7,1.0]
[1645149317576,0.85912,2910.9,2910.7,1.0]
[1645149318174,0.86231413,2910.9,2910.7,1.0]
[1645149318814,0.00319413,2910.9,2910.7,1.0]
[1645149319018,0.00319413,2910.9,2910.7,22.13905]
[1645149319317,0.3,2911.5,2910.8,1.40710864]
[1645149319516,1.2201,2911.7,2910.8,1.40710864]
[1645149319517,1.2201,2911.7,2910.9,20.27685853]
[1645149319723,0.07322927,2911.6,2911.0,21.68396717]
[1645149319926,0.07322927,2911.8,2911.1,1.40710864]
[1645149320121,0.07322927,2911.7,2911.1,3.26600864]
[1645149320321,0.07322927,2911.6,2911.2,21.68396717]
[1645149320522,0.07322927,2911.6,2911.1,1.0]
[1645149320722,0.93213927,2911.6,2911.2,1.40697675]
[1645149320921,0.07322927,2911.5,2910.8,0.795]
[1645149321122,0.3,2911.9,2910.9,1.40694392]
[1645149321321,7.24705686,2912.1,2910.9,1.40694392]
[1645149321322,0.07323265,2911.8,2910.9,1.40694392]
[1645149321523,0.07323265,2911.7,2911.0,1.40694392]
[1645149321822,0.85899,2911.5,2911.0,2.26590392]
[1645149322022,0.85901,2911.4,2911.1,2.35478416]
[1645149322272,0.85901,2911.4,2911.0,20.28]
[1645149322478,0.00458645,2911.9,2911.1,1.40686373]
[1645149322673,0.93223225,2911.8,2910.7,21.28]
[1645149322875,0.07323225,2911.7,2910.8,1.40306088]
[1645149323073,0.85912,2911.3,2910.8,1.70306088]
[1645149323276,0.85912,2911.3,2910.9,1.40306088]
[1645149323473,0.85912,2911.3,2910.9,2.49027244]
[1645149323671,0.85912,2911.3,2911.0,1.40306088]
[1645149324075,0.85901,2911.2,2911.0,2.40306088]
[1645149324273,0.86237067,2911.2,2911.1,1.40306088]